bitfinex/quotes_BTCUSD_20241003
["timestamp","ask_amount","ask_price","bid_price","bid_amount"]
[1727969067797,0.001,60452.0,60451.0,0.165423]
[1727969068718,0.33062116,60463.0,60450.0,0.330851]
[1727969068719,0.023,60462.0,60457.0,0.165404]
[1727969068982,0.16318671,60461.0,60458.0,0.165402]
[1727969069200,0.16318671,60461.0,60455.0,0.330819]
[1727969069201,0.16318671,60461.0,60459.0,0.1654]
[1727969069449,0.16318671,60460.0,60452.0,0.001]
[1727969069684,0.16318671,60453.0,60428.0,0.472832]
[1727969069930,0.16318671,60453.0,60445.0,0.41415916]
[1727969069931,0.023,60451.0,60445.0,0.41415916]
[1727969070167,0.16318671,60450.0,60447.0,0.330868]
[1727969070642,0.18911686,60450.0,60448.0,0.16543]
[1727969070880,0.18911686,60450.0,60444.0,0.330879]
[1727969070881,0.21032855,60450.0,60444.0,0.330879]
[1727969071141,0.18911686,60450.0,60447.0,0.330867]
[1727969071363,0.18911686,60450.0,60449.0,0.165428]
[1727969072037,0.18911686,60450.0,60449.0,0.167064]
[1727969073039,0.19911686,60450.0,60449.0,0.002636]
[1727969073282,0.31812855,60450.0,60449.0,0.002636]
[1727969073520,0.40782855,60450.0,60449.0,0.001636]
[1727969074027,0.41282855,60450.0,60449.0,0.001636]
[1727969074722,0.39291686,60450.0,60449.0,0.001636]
[1727969075201,0.38791686,60450.0,60449.0,0.001636]
[1727969075425,0.38791686,60450.0,60449.0,0.002636]
[1727969075426,0.39791686,60450.0,60449.0,0.002636]
[1727969075916,0.38791686,60450.0,60449.0,0.001636]
[1727969076143,0.40140281,60450.0,60449.0,0.001636]
[1727969076408,0.49215641,60450.0,60449.0,0.002636]
[1727969076654,0.73365126,60450.0,60449.0,0.002636]
[1727969076907,0.72465126,60450.0,60449.0,0.001636]
[1727969077164,0.47547266,60450.0,60449.0,0.001636]
[1727969077417,0.48847266,60450.0,60449.0,0.002636]
[1727969077679,0.48647266,60450.0,60449.0,0.002636]
[1727969077967,0.65393356,60450.0,60449.0,0.002636]
[1727969078396,0.65193356,60450.0,60449.0,0.002636]
[1727969078638,0.81512027,60450.0,60449.0,0.002636]
[1727969078887,1.06584143,60450.0,60449.0,0.002636]
[1727969079116,0.80612027,60450.0,60449.0,0.001636]
[1727969079338,0.81512027,60450.0,60449.0,0.002636]
[1727969079589,0.48650856,60450.0,60449.0,0.002636]
[1727969079811,0.47550856,60450.0,60449.0,0.001636]
[1727969080036,0.50144117,60450.0,60449.0,0.001636]
[1727969080287,0.31274117,60450.0,60449.0,0.002636]
[1727969080720,0.27874117,60450.0,60449.0,0.001636]
[1727969080721,0.20264117,60450.0,60449.0,0.167064]
[1727969080956,0.21364117,60450.0,60449.0,0.168064]
[1727969082180,0.20264117,60450.0,60449.0,0.167064]
[1727969082661,0.20264117,60450.0,60449.0,0.168064]
[1727969082662,0.20011932,60450.0,60449.0,0.168064]
[1727969082899,0.21367994,60450.0,60449.0,0.168064]
[1727969083146,0.18911932,60450.0,60449.0,0.167064]
[1727969083375,0.20971866,60450.0,60449.0,0.168064]
[1727969083836,0.20271866,60450.0,60449.0,0.167064]
[1727969084106,0.22299053,60450.0,60449.0,0.001636]
[1727969084341,0.20271866,60450.0,60449.0,0.001636]
[1727969084591,0.20271866,60450.0,60449.0,0.167064]
[1727969084829,0.20273956,60450.0,60449.0,0.167064]
[1727969085354,0.20273956,60450.0,60449.0,0.168064]
[1727969085580,0.17680695,60450.0,60449.0,0.168064]
[1727969085835,0.17680695,60450.0,60449.0,0.167064]
[1727969086331,0.01762024,60450.0,60449.0,0.167064]
[1727969086567,0.01762024,60450.0,60449.0,0.6056221]
[1727969086803,0.01362024,60450.0,60449.0,0.7056221]
[1727969087304,0.000818,60459.0,60458.0,0.165404]
[1727969088029,0.01448102,60459.0,60458.0,0.165404]
[1727969091442,0.01446969,60459.0,60458.0,0.165404]
[1727969091928,0.01446969,60459.0,60458.0,0.169404]
[1727969092395,0.01446894,60459.0,60458.0,0.165404]
[1727969092622,0.01546894,60459.0,60458.0,0.172404]
[1727969093090,0.01446894,60459.0,60458.0,0.165404]
[1727969093586,0.01546894,60459.0,60458.0,0.175404]
[1727969094791,0.01446894,60459.0,60458.0,0.165404]
[1727969095038,0.01546894,60459.0,60458.0,0.172404]
[1727969095276,0.01546894,60459.0,60458.0,0.169704]
[1727969095757,0.17865565,60459.0,60458.0,0.169704]
[1727969096262,0.19652122,60459.0,60458.0,0.169704]
[1727969096506,0.17865565,60459.0,60458.0,0.172404]
[1727969096739,0.17865565,60459.0,60458.0,0.007]
[1727969096973,0.17865565,60459.0,60458.0,0.172404]
[1727969097945,0.17865565,60459.0,60458.0,0.007]
[1727969098194,0.22623122,60459.0,60451.0,0.24872116]
[1727969098456,0.000818,60459.0,60458.0,0.165404]
[1727969098693,0.01447917,60459.0,60458.0,0.165404]
[1727969098925,0.05240503,60459.0,60458.0,0.166404]
[1727969099168,0.05240503,60459.0,60458.0,0.001]
[1727969099394,0.04040503,60459.0,60457.0,0.165405]
[1727969099626,0.03874386,60459.0,60458.0,0.001]
[1727969099858,0.05239668,60459.0,60458.0,0.001]
[1727969100088,0.05239668,60459.0,60458.0,0.166404]
[1727969100089,0.21558339,60459.0,60458.0,0.166404]
[1727969100571,0.21558339,60459.0,60458.0,0.001]
[1727969100814,0.38098439,60459.0,60458.0,0.001]
[1727969101111,0.165413,60455.0,60444.0,0.24872116]
[1727969101367,0.165425,60450.0,60444.0,0.24872116]
[1727969101610,0.01365282,60450.0,60444.0,0.57960316]
[1727969101851,0.20207782,60450.0,60443.0,0.00522499]
[1727969102117,0.22800968,60450.0,60437.0,0.24872116]
[1727969102363,0.22800968,60450.0,60437.0,0.41418016]
[1727969102364,0.27923239,60450.0,60437.0,0.41418016]
[1727969102566,0.27923239,60450.0,60437.0,0.24872116]
[1727969102817,0.45993239,60450.0,60449.0,0.002636]
[1727969103070,0.45993239,60450.0,60437.0,0.24872116]
[1727969103071,0.269158,60438.0,60437.0,0.24872116]
[1727969103309,0.65329027,60438.0,60437.0,0.24872116]
[1727969103554,0.38601007,60438.0,60437.0,0.24872116]
[1727969103793,0.87783973,60438.0,60430.0,0.24872116]
[1727969104030,0.16318671,60435.0,60430.0,0.24872116]
[1727969104496,0.16318671,60435.0,60427.0,0.165487]
[1727969104749,0.165481,60430.0,60425.0,0.001]
[1727969104991,0.023,60437.0,60430.0,0.165479]
[1727969105219,0.023,60437.0,60426.0,0.24872116]
[1727969105220,0.27172116,60437.0,60429.0,0.165483]
[1727969105456,0.02593863,60436.0,60435.0,0.165467]
[1727969105689,0.21837671,60436.0,60428.0,0.167116]
[1727969105955,0.17685801,60435.0,60428.0,0.001632]
[1727969106206,0.008,60430.0,60428.0,0.001632]
[1727969106455,0.32866971,60429.0,60428.0,0.001632]
[1727969106708,0.74255041,60429.0,60428.0,0.001632]
[1727969106948,0.82065041,60429.0,60428.0,0.001632]
[1727969107210,0.38460644,60429.0,60428.0,0.001632]
[1727969107449,0.25495801,60429.0,60428.0,0.001632]
[1727969107702,0.165491,60426.0,60425.0,0.001]
[1727969107951,0.34234901,60426.0,60425.0,0.001]
[1727969108202,0.52853572,60426.0,60425.0,0.001]
[1727969108443,0.73043572,60426.0,60425.0,0.001]
[1727969108690,0.73043572,60426.0,60406.0,0.167177]
[1727969108691,0.002,60409.0,60406.0,0.001632]
[1727969108938,0.44977527,60407.0,60406.0,0.001632]
[1727969109189,0.002,60401.0,60398.0,0.00163]
[1727969109436,0.167562,60400.0,60399.0,0.01232114]
[1727969109682,0.1,60403.0,60398.0,0.00163]
[1727969109926,0.16318671,60401.0,60398.0,0.25035116]
[1727969110161,0.16318671,60401.0,60398.0,0.00163]
[1727969110162,0.17690877,60401.0,60398.0,0.00163]
[1727969110402,0.03424628,60400.0,60398.0,0.00163]
[1727969110644,0.16318671,60399.0,60398.0,0.167198]
[1727969110900,0.01372206,60401.0,60400.0,0.165562]
[1727969111133,0.0499127,60411.0,60398.0,0.00163]
[1727969111378,0.24872116,60404.0,60403.0,0.496661]
[1727969111611,0.16318671,60404.0,60403.0,0.496661]
[1727969111851,0.0499127,60411.0,60410.0,0.165535]
[1727969112086,0.22677371,60411.0,60410.0,0.165535]
[1727969112348,0.16318671,60411.0,60410.0,0.165535]
[1727969112605,0.17950538,60411.0,60391.0,0.1941]
[1727969112861,0.16318671,60410.0,60405.0,0.165548]
[1727969113110,0.02594795,60408.0,60404.0,0.165549]
[1727969113350,0.20028514,60407.0,60397.0,0.331141]
[1727969113627,0.077,60406.0,60396.0,0.24872116]
[1727969113921,0.24218671,60406.0,60395.0,0.58151016]
[1727969114093,0.24018671,60406.0,60395.0,0.58151016]
[1727969114326,0.17687953,60406.0,60401.0,0.331118]
[1727969114580,0.17687953,60406.0,60405.0,0.165549]
[1727969115334,0.01369282,60406.0,60405.0,0.165549]
[1727969115568,0.02069282,60406.0,60405.0,0.165549]
[1727969116026,0.01369282,60406.0,60405.0,0.165549]
[1727969116265,0.002,60406.0,60405.0,0.165549]
[1727969117001,0.002,60406.0,60405.0,0.362349]
[1727969117504,0.24872116,60414.0,60413.0,0.165527]
[1727969118005,0.24872116,60421.0,60420.0,0.165508]
[1727969118240,0.41190787,60421.0,60420.0,0.165508]
[1727969118475,0.16318671,60421.0,60420.0,0.165508]
[1727969118704,0.16318671,60421.0,60415.0,0.331038]
[1727969118705,0.02594134,60433.0,60415.0,0.331038]
[1727969118936,0.16318671,60427.0,60426.0,0.165491]
[1727969119170,0.41190787,60427.0,60426.0,0.165491]
[1727969119411,0.0498699,60433.0,60424.0,0.28423227]
[1727969119642,0.0498699,60433.0,60417.0,0.331031]
[1727969119643,0.0498699,60433.0,60432.0,0.165475]
[1727969120127,0.24872116,60438.0,60437.0,0.165461]
[1727969120399,0.24872116,60438.0,60434.0,0.165469]
[1727969120639,0.16318671,60437.0,60427.0,0.24872116]
[1727969120869,0.24872116,60436.0,60429.0,0.330962]
[1727969121110,0.24872116,60436.0,60412.0,0.63295343]
[1727969121111,0.165479,60431.0,60412.0,0.63295343]
[1727969121362,0.22914678,60430.0,60424.0,0.41421716]
[1727969121608,0.22914678,60430.0,60422.0,0.331004]
[1727969121838,0.22914678,60430.0,60420.0,0.331014]
[1727969122073,0.16318671,60430.0,60424.0,0.330992]
[1727969122324,0.16318671,60430.0,60429.0,0.165483]
[1727969122565,0.011,60431.0,60430.0,0.16548]
[1727969123092,0.17418671,60431.0,60430.0,0.16548]
[1727969123323,0.03693576,60431.0,60430.0,0.16548]
[1727969123558,0.02593576,60431.0,60430.0,0.16548]
[1727969124766,0.03293576,60431.0,60430.0,0.16548]
[1727969125289,0.02593576,60431.0,60430.0,0.16548]
[1727969125532,0.02693576,60431.0,60430.0,0.16948]
[1727969126010,0.001,60431.0,60430.0,0.16948]
[1727969127237,0.0499791,60443.0,60442.0,0.165447]
[1727969127486,0.21316581,60443.0,60442.0,0.165447]
[1727969127748,0.16318671,60443.0,60442.0,0.165447]
[1727969128003,0.21697541,60443.0,60442.0,0.165447]
[1727969128236,0.16318671,60443.0,60442.0,0.165447]
[1727969129225,0.16318671,60443.0,60440.0,0.165451]
[1727969129226,0.19411978,60443.0,60440.0,0.165451]
[1727969129458,0.16318671,60442.0,60430.0,0.24872116]
[1727969129702,0.16318671,60442.0,60386.0,0.09839144]
[1727969129703,0.16318671,60441.0,60428.0,0.24872116]
[1727969130192,0.21272271,60441.0,60432.0,0.330947]
[1727969130438,0.21272271,60441.0,60440.0,0.165453]
[1727969130969,0.2202244,60441.0,60440.0,0.165453]
[1727969131518,0.2202244,60441.0,60439.0,0.165455]
[1727969131763,0.2302244,60441.0,60434.0,0.330936]
[1727969132032,0.2302244,60441.0,60428.0,0.24872116]
[1727969132033,0.165472,60433.0,60428.0,0.165485]
[1727969132268,0.19605258,60432.0,60430.0,0.24872116]
[1727969132530,0.19605258,60432.0,60428.0,0.165485]
[1727969132531,0.16318671,60432.0,60428.0,0.165485]
[1727969132823,0.18912529,60432.0,60428.0,0.165485]
[1727969133092,0.01685308,60431.0,60430.0,0.16548]
[1727969133269,0.0337422,60431.0,60430.0,0.16548]
[1727969133519,0.01685308,60431.0,60430.0,0.16548]
[1727969133772,0.02593858,60432.0,60431.0,0.165477]
[1727969134274,0.18912529,60432.0,60431.0,0.165477]
[1727969134774,0.20803782,60432.0,60431.0,0.165477]
[1727969135242,0.22496466,60432.0,60431.0,0.165477]
[1727969135939,0.19902608,60432.0,60431.0,0.165477]
[1727969136406,0.18209924,60432.0,60431.0,0.165477]
[1727969136890,0.19898663,60432.0,60431.0,0.165477]
[1727969137601,0.19898663,60432.0,60429.0,0.330964]
[1727969137850,0.18003561,60431.0,60430.0,0.16548]
[1727969138087,0.165481,60430.0,60423.0,0.330999]
[1727969138326,0.16318671,60431.0,60428.0,0.165486]
[1727969138327,0.18006719,60429.0,60428.0,0.165486]
[1727969139279,0.16318671,60429.0,60428.0,0.165486]
[1727969139742,0.18003707,60429.0,60428.0,0.165486]
[1727969140079,0.16318671,60429.0,60428.0,0.165486]
[1727969140537,0.16318671,60429.0,60413.0,0.1]
[1727969140538,0.330972,60428.0,60413.0,0.1]
[1727969140745,0.165501,60423.0,60418.0,0.165512]
[1727969140953,0.16318671,60422.0,60417.0,0.165515]
[1727969141347,0.165514,60418.0,60413.0,0.165526]
[1727969141579,0.57970116,60427.0,60404.0,0.00533442]
[1727969141580,0.248328,60413.0,60408.0,0.16554]
[1727969141829,0.165546,60406.0,60404.0,0.00533442]
[1727969142074,0.36160598,60406.0,60404.0,0.00533442]
[1727969142309,0.36160598,60406.0,60398.0,0.00163]
[1727969142544,0.43980598,60406.0,60398.0,0.00163]
[1727969142773,0.54180598,60406.0,60398.0,0.00163]
[1727969143001,0.62819427,60400.0,60398.0,0.00163]
[1727969143240,0.267565,60399.0,60398.0,0.00163]
[1727969143454,0.267565,60399.0,60395.0,0.001636]
[1727969143455,0.366973,60396.0,60395.0,0.001636]
[1727969143674,0.6316344,60396.0,60395.0,0.001636]
[1727969143898,0.60717539,60396.0,60395.0,0.001636]
[1727969144128,0.50715971,60396.0,60395.0,0.001636]
[1727969144378,0.53311754,60396.0,60395.0,0.001636]
[1727969144630,0.29378639,60396.0,60395.0,0.001636]
[1727969144848,0.45935939,60396.0,60395.0,0.001636]
[1727969145063,0.30778639,60396.0,60395.0,0.001636]
[1727969145306,0.47335939,60396.0,60395.0,0.001636]
[1727969145536,0.27954454,60396.0,60395.0,0.001636]
[1727969145749,0.25358671,60396.0,60395.0,0.001636]
[1727969146232,0.25358671,60396.0,60395.0,0.167212]
[1727969146233,0.17718671,60396.0,60395.0,0.167212]
[1727969146927,0.16318671,60396.0,60395.0,0.167212]
[1727969147273,0.17718671,60396.0,60395.0,0.167212]
[1727969147655,0.16318671,60396.0,60395.0,0.167212]
[1727969147874,0.16318671,60396.0,60395.0,0.001636]
[1727969147875,0.18250538,60396.0,60395.0,0.001636]
[1727969148350,0.34507838,60396.0,60395.0,0.001636]
[1727969148583,0.17950538,60396.0,60395.0,0.001636]
[1727969148811,0.373033,60396.0,60395.0,0.001636]
[1727969149024,0.18150538,60396.0,60395.0,0.001636]
[1727969149726,0.18150538,60396.0,60395.0,0.167212]
[1727969149727,0.16518671,60396.0,60395.0,0.167212]
[1727969149999,0.16318671,60396.0,60395.0,0.001636]
[1727969150487,0.17718671,60396.0,60395.0,0.001636]
[1727969151362,0.16318671,60396.0,60395.0,0.001636]
[1727969151577,0.2464895,60396.0,60395.0,0.001636]
[1727969152060,0.17218671,60396.0,60395.0,0.167212]
[1727969152537,0.36371352,60396.0,60395.0,0.001636]
[1727969152759,0.19814052,60396.0,60395.0,0.001636]
[1727969152983,0.18914052,60396.0,60395.0,0.167212]
[1727969153195,0.22205457,60396.0,60395.0,0.167212]
[1727969153873,0.20805457,60396.0,60395.0,0.167212]
[1727969154106,0.21805457,60396.0,60395.0,0.001636]
[1727969154569,0.20805457,60396.0,60395.0,0.001636]
[1727969154824,0.21605457,60396.0,60395.0,0.001636]
[1727969156029,0.20805457,60396.0,60395.0,0.001636]
[1727969156240,0.37362757,60396.0,60395.0,0.001636]
[1727969156497,0.19410076,60396.0,60395.0,0.001636]
[1727969157161,0.18210076,60396.0,60395.0,0.001636]
[1727969157387,0.18210076,60396.0,60395.0,0.167212]
[1727969157912,0.19610076,60396.0,60395.0,0.001636]
[1727969158171,0.36167376,60396.0,60395.0,0.001636]
[1727969158968,0.19610076,60396.0,60395.0,0.001636]
[1727969159439,0.18210076,60396.0,60395.0,0.001636]
[1727969159717,0.19410076,60396.0,60395.0,0.001636]
[1727969159929,0.20114109,60396.0,60395.0,0.167212]
[1727969160266,0.16318671,60396.0,60395.0,0.167212]
[1727969160456,0.17318671,60396.0,60395.0,0.167212]
[1727969160694,0.19058728,60396.0,60395.0,0.167212]
[1727969160915,0.18058728,60396.0,60395.0,0.167212]
[1727969161179,0.17518671,60396.0,60395.0,0.001636]
[1727969161422,0.35762175,60396.0,60395.0,0.001636]
[1727969161678,0.35762175,60396.0,60395.0,0.167212]
[1727969161679,0.19204257,60396.0,60395.0,0.167212]
[1727969161933,0.21132873,60396.0,60395.0,0.167212]
[1727969162464,0.17518671,60396.0,60395.0,0.167212]
[1727969162927,0.16318671,60396.0,60395.0,0.167212]
[1727969163155,0.18003782,60396.0,60395.0,0.167212]
[1727969163432,0.16318671,60396.0,60395.0,0.167212]
[1727969163691,0.33675971,60396.0,60395.0,0.001636]
[1727969163918,0.33675971,60396.0,60388.0,0.001636]
[1727969163919,0.165593,60389.0,60388.0,0.001636]
[1727969164154,0.16318671,60389.0,60388.0,0.001636]
[1727969164410,0.32877971,60389.0,60388.0,0.001636]
[1727969164666,0.4792343,60389.0,60388.0,0.001636]
[1727969165129,0.5812343,60389.0,60388.0,0.001636]
[1727969165397,0.57827605,60389.0,60388.0,0.001636]
[1727969166159,0.44615328,60389.0,60388.0,0.001636]
[1727969166689,0.002,60381.0,60375.0,0.24872116]
[1727969166934,0.002,60381.0,60369.0,0.001636]
[1727969166935,0.165645,60370.0,60369.0,0.001636]
[1727969167180,0.247658,60365.0,60361.0,0.0002]
[1727969167418,0.165693,60353.0,60349.0,0.24872116]
[1727969167674,0.165693,60353.0,60345.0,0.333054]
[1727969167675,0.28423227,60351.0,60345.0,0.001632]
[1727969167918,0.61512998,60346.0,60345.0,0.001632]
[1727969168158,0.63250355,60346.0,60345.0,0.001632]
[1727969168406,0.77631669,60346.0,60345.0,0.001632]
[1727969168658,0.79581662,60346.0,60345.0,0.001632]
[1727969168890,0.91881662,60346.0,60345.0,0.001632]
[1727969169126,0.44387335,60346.0,60345.0,0.001632]
[1727969169357,0.18068664,60346.0,60345.0,0.001632]
[1727969169841,0.18068664,60346.0,60345.0,0.167345]
[1727969170091,0.01749993,60346.0,60345.0,0.167345]
[1727969170588,0.03049993,60346.0,60345.0,0.167345]
[1727969171084,0.01749993,60346.0,60345.0,0.167345]
[1727969171324,0.01749993,60346.0,60345.0,0.168345]
[1727969171551,0.02597143,60360.0,60357.0,0.16568]
[1727969171780,0.23056811,60358.0,60357.0,0.16568]
[1727969172011,0.18058201,60358.0,60357.0,0.16568]
[1727969172474,0.18058201,60358.0,60345.0,0.002632]
[1727969172724,0.58002916,60367.0,60345.0,0.002632]
[1727969172725,0.42930317,60357.0,60345.0,0.002632]
[1727969172976,0.28423227,60352.0,60345.0,0.002632]
[1727969173196,0.16318671,60347.0,60345.0,0.001632]
[1727969173426,0.04125875,60346.0,60345.0,0.001632]
[1727969173665,0.20444546,60346.0,60345.0,0.001632]
[1727969173916,0.22628001,60346.0,60345.0,0.001632]
[1727969174159,0.22628001,60346.0,60345.0,0.167345]
[1727969174407,0.21130607,60346.0,60345.0,0.1752012]
[1727969174655,0.21994342,60346.0,60345.0,0.0094882]
[1727969174901,0.25187794,60346.0,60345.0,0.1752012]
[1727969175143,0.2727361,60346.0,60345.0,0.1752012]
[1727969176119,0.05279513,60346.0,60345.0,0.1752012]
[1727969176623,0.02461351,60346.0,60345.0,0.3696012]
[1727969177100,0.0497392,60358.0,60345.0,0.0094882]
[1727969177330,0.009,60346.0,60345.0,0.1752012]
[1727969177802,0.03487788,60346.0,60345.0,0.1752012]
[1727969178067,0.03259002,60346.0,60345.0,0.1762012]
[1727969178258,0.04978569,60346.0,60345.0,0.1762012]
[1727969178527,0.07807828,60346.0,60345.0,0.1762012]
[1727969179032,0.06088261,60346.0,60345.0,0.1762012]
[1727969179261,0.0469748,60346.0,60345.0,0.1762012]
[1727969179725,0.07795686,60346.0,60345.0,0.0104882]
[1727969179952,0.07695686,60346.0,60345.0,0.0094882]
[1727969180290,0.10293164,60346.0,60345.0,0.0104882]
[1727969180522,0.26864264,60346.0,60345.0,0.0104882]
[1727969180747,0.26864264,60346.0,60345.0,0.001632]
[1727969180949,0.11682847,60346.0,60345.0,0.001632]
[1727969181156,0.11682847,60346.0,60345.0,0.00955273]
[1727969181357,0.32751406,60346.0,60345.0,0.17526573]
[1727969181568,0.25212141,60346.0,60345.0,0.17526573]
[1727969181773,0.28003113,60346.0,60345.0,0.17526573]
[1727969181976,0.28003113,60346.0,60345.0,0.00955273]
[1727969182378,0.28003113,60346.0,60345.0,0.001632]
[1727969182624,0.165717,60344.0,60341.0,0.0002]
[1727969182796,0.247141,60335.0,60326.0,0.24872116]
[1727969183178,0.77142962,60335.0,60333.0,0.24872116]
[1727969183405,0.32145635,60335.0,60326.0,0.24872116]
[1727969183629,0.51317791,60335.0,60326.0,0.165763]
[1727969183861,0.51317791,60335.0,60328.0,0.165758]
[1727969184084,0.73645026,60335.0,60324.0,0.16577]
[1727969184315,0.96073495,60335.0,60327.0,0.25035916]
[1727969184596,0.67650268,60335.0,60327.0,0.001638]
[1727969184821,0.69040202,60335.0,60327.0,0.001638]
[1727969185049,0.28007431,60335.0,60327.0,0.001638]
[1727969185273,0.25409375,60335.0,60334.0,0.167382]
[1727969185729,0.25409375,60335.0,60334.0,0.17542331]
[1727969186684,0.20880237,60335.0,60334.0,0.17542331]
[1727969186908,0.19480237,60335.0,60334.0,0.17542331]
[1727969187144,0.21428261,60335.0,60334.0,0.17542331]
[1727969187362,0.03346492,60335.0,60334.0,0.17542331]
[1727969187805,0.19665163,60335.0,60334.0,0.17542331]
[1727969188030,0.19465163,60335.0,60334.0,0.17542331]
[1727969188282,0.22062869,60335.0,60334.0,0.17542331]
[1727969188497,0.25956238,60335.0,60334.0,0.17542331]
[1727969188733,0.28776222,60335.0,60334.0,0.00967931]
[1727969188969,0.28776222,60335.0,60327.0,0.001638]
[1727969188970,0.3488914,60335.0,60327.0,0.001638]
[1727969189210,0.16318671,60328.0,60327.0,0.001638]
[1727969189460,0.38861147,60328.0,60327.0,0.001638]
[1727969189689,0.40553052,60328.0,60327.0,0.001638]
[1727969189940,0.40753052,60328.0,60327.0,0.001638]
[1727969190626,0.39192923,60328.0,60327.0,0.001638]
[1727969190912,0.22616923,60328.0,60327.0,0.001638]
[1727969191135,0.25412225,60328.0,60327.0,0.167401]
[1727969191373,0.26858859,60328.0,60327.0,0.001638]
[1727969191593,0.30023101,60328.0,60327.0,0.001638]
[1727969191844,0.30023101,60328.0,60327.0,0.167401]
[1727969192312,0.35623607,60328.0,60327.0,0.167401]
[1727969192523,0.31221297,60328.0,60327.0,0.167401]
[1727969192748,0.32621297,60328.0,60327.0,0.167401]
[1727969193210,0.31221297,60328.0,60327.0,0.167401]
[1727969193435,0.26621014,60328.0,60327.0,0.167401]
[1727969193660,0.36170691,60328.0,60327.0,0.167401]
[1727969193884,0.31807539,60328.0,60327.0,0.167401]
[1727969194129,0.29812363,60328.0,60327.0,0.167401]
[1727969194349,0.30012363,60328.0,60327.0,0.167401]
[1727969194576,0.31407914,60328.0,60327.0,0.167401]
[1727969196227,0.28809718,60328.0,60327.0,0.167401]
[1727969196231,0.28609718,60328.0,60327.0,0.167401]
[1727969196479,0.29309718,60328.0,60327.0,0.167401]
[1727969196757,0.08423787,60328.0,60327.0,0.167401]
[1727969197023,0.07723787,60328.0,60327.0,0.167401]
[1727969197588,0.24872116,60337.0,60336.0,0.165738]
[1727969197828,0.27732793,60337.0,60336.0,0.165738]
[1727969198173,0.31246653,60337.0,60336.0,0.165738]
[1727969198427,0.06374537,60337.0,60336.0,0.165738]
[1727969199193,0.22693208,60337.0,60336.0,0.165738]
[1727969199454,0.27560079,60337.0,60336.0,0.165738]
[1727969199973,0.28460079,60337.0,60336.0,0.165738]
[1727969200448,0.51733679,60337.0,60333.0,0.165744]
[1727969200724,0.51733679,60337.0,60327.0,0.001638]
[1727969200725,0.16318671,60336.0,60328.0,0.331518]
[1727969200968,0.02860677,60335.0,60334.0,0.165744]
[1727969201196,0.20967403,60335.0,60334.0,0.165744]
[1727969201462,0.20900871,60335.0,60331.0,0.331501]
[1727969201710,0.19827326,60334.0,60333.0,0.165745]
[1727969201947,0.312578,60334.0,60327.0,0.001638]
[1727969202182,0.32894671,60328.0,60327.0,0.001638]
[1727969202406,0.22690112,60328.0,60327.0,0.167401]
[1727969202633,0.26616643,60328.0,60327.0,0.167401]
[1727969202869,0.25288383,60328.0,60327.0,0.167401]
[1727969203107,0.25288383,60328.0,60327.0,0.001638]
[1727969203594,0.41864383,60328.0,60327.0,0.001638]
[1727969204041,0.42864383,60328.0,60327.0,0.001638]
[1727969204316,0.26288383,60328.0,60327.0,0.167401]
[1727969205349,0.25288383,60328.0,60327.0,0.167401]
[1727969205619,0.26488383,60328.0,60327.0,0.167401]
[1727969205844,0.26488383,60328.0,60327.0,0.001638]
[1727969206112,0.39266112,60328.0,60327.0,0.001638]
[1727969206338,0.40266112,60328.0,60327.0,0.001638]
[1727969206590,0.56584783,60328.0,60327.0,0.001638]
[1727969206829,0.55584783,60328.0,60327.0,0.001638]
[1727969207077,0.40208783,60328.0,60327.0,0.167401]
[1727969207319,0.23890112,60328.0,60327.0,0.167401]
[1727969208519,0.39266112,60328.0,60327.0,0.001638]
[1727969208763,0.165776,60322.0,60320.0,0.0157407]
[1727969208992,0.16579,60317.0,60313.0,0.24872116]
[1727969209258,0.37549698,60317.0,60306.0,0.24872116]
[1727969209772,0.37549698,60317.0,60310.0,0.331619]
[1727969210026,0.39269112,60317.0,60308.0,0.24872116]
[1727969210293,0.38032652,60317.0,60308.0,0.24872116]
[1727969210555,0.59469782,60317.0,60308.0,0.24872116]
[1727969210818,0.60549751,60317.0,60308.0,0.24872116]
[1727969211083,0.62161533,60317.0,60308.0,0.24872116]
[1727969211342,0.29263862,60317.0,60310.0,0.331616]
[1727969211582,0.29263862,60317.0,60312.0,0.331604]
[1727969211835,0.27863862,60317.0,60308.0,0.58034816]
[1727969212096,0.29263862,60317.0,60313.0,0.165801]
[1727969212368,0.24128881,60317.0,60316.0,0.165893]
[1727969212608,0.0641021,60317.0,60316.0,0.45012527]
[1727969212841,0.0781021,60317.0,60316.0,0.45012527]
[1727969213085,0.0781021,60317.0,60316.0,0.165893]
[1727969213324,0.25327235,60317.0,60316.0,0.165893]
[1727969213579,0.28459958,60317.0,60316.0,0.165893]
[1727969213848,0.28459958,60317.0,60316.0,0.0001]
[1727969214825,0.27859958,60317.0,60316.0,0.0001]
[1727969215064,0.25327235,60317.0,60316.0,0.0001]
[1727969215342,0.41906235,60317.0,60316.0,0.0001]
[1727969215595,0.47043685,60317.0,60316.0,0.0001]
[1727969215835,0.30464685,60317.0,60316.0,0.0001]
[1727969216067,0.37278838,60317.0,60316.0,0.0001]
[1727969216318,0.23628881,60317.0,60316.0,0.00092]
[1727969216553,0.22728881,60317.0,60316.0,0.00092]
[1727969216813,0.40407881,60317.0,60316.0,0.00092]
[1727969217067,0.23828881,60317.0,60316.0,0.00092]
[1727969217322,0.33672381,60317.0,60316.0,0.00092]
[1727969217590,0.50251381,60317.0,60316.0,0.00092]
[1727969218106,0.54291434,60317.0,60316.0,0.00092]
[1727969218358,0.55691434,60317.0,60316.0,0.00092]
[1727969218641,0.65891434,60317.0,60316.0,0.00092]
[1727969218976,0.81991434,60317.0,60316.0,0.00092]
[1727969219163,0.81991434,60317.0,60304.0,0.00529433]
[1727969219164,0.167823,60305.0,60304.0,0.00529433]
[1727969219412,0.167823,60305.0,60300.0,0.24872116]
[1727969219413,0.265834,60301.0,60300.0,0.24872116]
[1727969219650,0.48042124,60301.0,60300.0,0.24872116]
[1727969219911,0.1,60300.0,60299.0,0.00529807]
[1727969220138,0.36150422,60300.0,60299.0,0.00529807]
[1727969220375,0.36150422,60300.0,60286.0,0.58046816]
[1727969220376,0.54456868,60300.0,60286.0,0.41459616]
[1727969220648,0.16318671,60291.0,60284.0,0.000819]
[1727969220904,0.24148671,60289.0,60288.0,0.10532766]
[1727969221136,0.57149715,60289.0,60288.0,0.10532766]
[1727969221363,0.45895235,60289.0,60288.0,0.1]
[1727969221592,0.54829181,60289.0,60284.0,0.000819]